bitfinex/quotes_BTCUSD_20230113
["timestamp","ask_amount","ask_price","bid_price","bid_amount"]
[1673645206508,0.00263688,19503.0,19502.0,0.67296414]
[1673645206758,0.00263688,19503.0,19502.0,0.09]
[1673645206759,0.12151688,19503.0,19502.0,0.09]
[1673645207007,0.31884377,19503.0,19502.0,0.09]
[1673645207556,0.03081177,19503.0,19502.0,0.09]
[1673645208030,0.03931177,19503.0,19502.0,0.09076803]
[1673645208298,0.00263688,19503.0,19502.0,0.09076803]
[1673645208522,0.00263688,19503.0,19502.0,0.74971229]
[1673645209032,0.00263688,19503.0,19502.0,0.71203191]
[1673645209300,0.00263688,19503.0,19502.0,1.56237461]
[1673645209566,0.00263688,19503.0,19502.0,1.48500243]
[1673645209810,0.00263688,19503.0,19502.0,0.6338917]
[1673645210595,0.00263688,19503.0,19502.0,0.9403427]
[1673645210851,0.00263688,19503.0,19502.0,0.984727]
[1673645211090,0.00263688,19503.0,19502.0,0.660617]
[1673645211350,0.24233688,19503.0,19502.0,0.09]
[1673645211601,0.03981725,19503.0,19502.0,0.09]
[1673645212088,0.01113688,19503.0,19502.0,0.09]
[1673645212575,0.29572943,19503.0,19502.0,0.09]
[1673645212823,0.45634596,19503.0,19502.0,0.09]
[1673645213316,0.21664596,19503.0,19502.0,0.09]
[1673645213557,0.28028888,19503.0,19502.0,0.09]
[1673645213794,0.31934859,19503.0,19502.0,0.09]
[1673645214031,0.31488752,19503.0,19502.0,0.09]
[1673645214291,0.49059382,19503.0,19502.0,0.09]
[1673645214535,0.49059382,19503.0,19502.0,1.09]
[1673645214536,0.58028888,19503.0,19502.0,1.09]
[1673645214800,0.31577447,19503.0,19502.0,1.0]
[1673645215043,0.17427447,19503.0,19502.0,1.0]
[1673645215308,0.17427447,19503.0,19502.0,1.17723032]
[1673645215309,0.19427447,19503.0,19502.0,1.17723032]
[1673645215814,0.06498559,19503.0,19502.0,1.007]
[1673645216056,0.04498559,19503.0,19502.0,1.0]
[1673645216289,0.04498559,19503.0,19502.0,1.01]
[1673645216290,0.19427459,19503.0,19502.0,1.01]
[1673645216544,0.0085,19503.0,19502.0,1.51945425]
[1673645216827,0.0085,19503.0,19502.0,1.74862999]
[1673645216828,0.0285,19503.0,19502.0,1.74862999]
[1673645217310,0.02,19503.0,19502.0,1.22917574]
[1673645217558,0.02,19503.0,19502.0,1.60981475]
[1673645217812,0.02,19503.0,19502.0,1.94376924]
[1673645218536,0.02,19503.0,19502.0,1.94461179]
[1673645219050,0.02,19503.0,19502.0,2.51423714]
[1673645219307,0.02,19503.0,19502.0,2.81693775]
[1673645219558,0.02,19503.0,19502.0,2.30355416]
[1673645221516,0.02,19503.0,19502.0,2.00062759]
[1673645222234,0.02,19503.0,19502.0,0.9999835]
[1673645222484,0.05605672,19503.0,19502.0,0.9999835]
[1673645222783,0.05605672,19503.0,19502.0,1.00020946]
[1673645223031,0.02,19503.0,19502.0,1.00020946]
[1673645223533,0.02,19503.0,19502.0,0.9999835]
[1673645224041,0.57552706,19503.0,19502.0,0.9999835]
[1673645224286,0.70481606,19503.0,19502.0,0.9999835]
[1673645225521,1.31755706,19503.0,19502.0,0.9999835]
[1673645226021,2.17639799,19503.0,19502.0,0.9999835]
[1673645226272,2.87660143,19503.0,19502.0,0.3428835]
[1673645226523,1.96658712,19503.0,19502.0,0.3428835]
[1673645226766,2.28509598,19503.0,19502.0,0.3358835]
[1673645227020,2.22728712,19503.0,19502.0,0.3418835]
[1673645227264,2.07458395,19503.0,19502.0,0.3358835]
[1673645227522,2.07458395,19503.0,19502.0,0.3418835]
[1673645227781,2.09928712,19503.0,19502.0,0.3358835]
[1673645228054,2.09928712,19503.0,19502.0,0.3418835]
[1673645228055,3.22187827,19503.0,19502.0,0.3418835]
[1673645228299,0.665767,19501.0,19498.0,0.00019]
[1673645228550,1.03414,19500.0,19499.0,0.12156327]
[1673645228802,0.12230945,19500.0,19499.0,0.84567565]
[1673645229072,0.665767,19501.0,19499.0,0.19711558]
[1673645229314,0.665767,19501.0,19499.0,0.63093153]
[1673645229570,0.665767,19501.0,19499.0,0.63018826]
[1673645229817,0.014,19500.0,19499.0,0.67818826]
[1673645230067,0.69610791,19501.0,19499.0,0.50936826]
[1673645230379,0.1,19500.0,19499.0,0.50936826]
[1673645230555,0.675767,19501.0,19499.0,0.60730509]
[1673645231538,0.70503113,19501.0,19499.0,0.55636826]
[1673645231793,0.03926413,19501.0,19499.0,0.55636826]
[1673645232042,0.01,19501.0,19500.0,0.62858321]
[1673645232297,0.01,19501.0,19500.0,0.60858321]
[1673645232545,0.01,19501.0,19500.0,0.06555832]
[1673645232797,0.01756982,19504.0,19501.0,0.1]
[1673645233067,0.01756982,19504.0,19502.0,0.104042]
[1673645233323,0.01756982,19504.0,19503.0,0.324068]
[1673645233586,0.01756982,19504.0,19501.0,0.612789]
[1673645233829,0.01756982,19504.0,19501.0,0.76499794]
[1673645234078,0.15056982,19504.0,19502.0,0.40594205]
[1673645234328,0.15056982,19504.0,19503.0,0.7527836]
[1673645234822,0.20570307,19504.0,19502.0,0.005]
[1673645235068,0.07270307,19504.0,19501.0,0.56464291]
[1673645235320,0.07570307,19504.0,19501.0,0.57864291]
[1673645235566,0.07270307,19504.0,19501.0,0.56464291]
[1673645235808,0.13670307,19504.0,19503.0,0.006]
[1673645236063,0.07270307,19504.0,19501.0,0.56464291]
[1673645236319,0.02056982,19504.0,19502.0,0.6702137]
[1673645236572,0.02056982,19504.0,19503.0,0.63606103]
[1673645237323,0.02056982,19504.0,19503.0,0.96018503]
[1673645237580,0.02056982,19504.0,19503.0,1.06018503]
[1673645237581,0.01756982,19504.0,19503.0,1.06018503]
[1673645237826,0.01756982,19504.0,19503.0,0.96018503]
[1673645238322,0.01750322,19504.0,19503.0,0.96018503]
[1673645238569,0.08150322,19504.0,19503.0,1.17997533]
[1673645238820,0.08150322,19504.0,19503.0,1.88239694]
[1673645239083,0.08150322,19504.0,19503.0,2.03460587]
[1673645239329,0.01750322,19504.0,19503.0,2.41025225]
[1673645239583,0.03150322,19504.0,19503.0,2.45825225]
[1673645239836,0.01767695,19505.0,19503.0,4.07066797]
[1673645240086,0.01767695,19505.0,19504.0,1.1871345]
[1673645240370,0.01767695,19505.0,19504.0,3.30316979]
[1673645240602,0.01667546,19506.0,19505.0,0.1]
[1673645240854,0.01667546,19506.0,19505.0,2.38889613]
[1673645241109,0.07329542,19512.0,19505.0,1.59177978]
[1673645241110,8.65510062,19510.0,19505.0,1.59177978]
[1673645241374,0.05755676,19509.0,19506.0,0.25604466]
[1673645241638,8.46018633,19510.0,19507.0,1.349312]
[1673645241906,8.45518633,19510.0,19508.0,0.78084236]
[1673645242172,8.45518633,19510.0,19509.0,0.324014]
[1673645242431,8.45518633,19510.0,19509.0,0.47550634]
[1673645242685,8.45518633,19510.0,19508.0,0.15208666]
[1673645242686,0.05514988,19509.0,19508.0,0.15208666]
[1673645242950,0.05514988,19509.0,19508.0,0.29108666]
[1673645242951,0.05578264,19509.0,19508.0,0.29108666]
[1673645243199,0.15578264,19509.0,19508.0,0.15208666]
[1673645243712,0.05578264,19509.0,19508.0,0.15208666]
[1673645244012,0.05578264,19509.0,19505.0,1.01731733]
[1673645244013,0.0085,19509.0,19505.0,0.22812999]
[1673645244313,0.1,19507.0,19505.0,0.22812999]
[1673645244805,0.05951323,19506.0,19505.0,0.22812999]
[1673645245043,0.05951323,19506.0,19505.0,0.32012999]
[1673645245276,0.05212644,19509.0,19506.0,0.59194898]
[1673645245588,0.05231644,19509.0,19507.0,0.324085]
[1673645245766,0.05231644,19509.0,19508.0,0.102488]
[1673645246007,0.05231644,19509.0,19508.0,0.0102488]
[1673645246008,0.2179,19509.0,19508.0,0.0102488]
[1673645246247,0.05773877,19506.0,19505.0,0.4516465]
[1673645246491,0.05773877,19506.0,19505.0,0.3126465]
[1673645246735,0.05773877,19506.0,19505.0,0.55221499]
[1673645247227,0.05773877,19506.0,19505.0,0.22812999]
[1673645247713,0.05773877,19506.0,19503.0,0.63037357]
[1673645247954,0.26804371,19506.0,19505.0,0.139]
[1673645248195,0.1,19506.0,19499.0,4.10234878]
[1673645248435,0.21030494,19505.0,19500.0,1.07913431]
[1673645248697,0.21030494,19504.0,19501.0,0.85685334]
[1673645248937,0.21030494,19504.0,19502.0,0.102635]
[1673645249182,1.125393,19506.0,19501.0,0.53276834]
[1673645249453,0.1,19504.0,19501.0,0.06327683]
[1673645249705,0.1,19504.0,19500.0,0.74615128]
[1673645249706,0.31030494,19504.0,19500.0,0.74615128]
[1673645249968,0.21880494,19503.0,19500.0,0.139]
[1673645250183,0.1,19502.0,19500.0,0.139]
[1673645250420,0.87053349,19502.0,19499.0,3.19577243]
[1673645250778,0.21880494,19501.0,19499.0,3.19577243]
[1673645251027,1.149383,19500.0,19499.0,0.37965365]
[1673645251263,1.157883,19500.0,19499.0,0.37965365]
[1673645252011,1.604783,19500.0,19499.0,0.37965365]
[1673645252270,1.994822,19500.0,19499.0,0.38665365]
[1673645252511,1.721783,19500.0,19499.0,0.38665365]
[1673645253314,1.721783,19500.0,19499.0,0.00017365]
[1673645253566,0.1,19499.0,19498.0,0.68337658]
[1673645253837,0.66360319,19497.0,19496.0,0.00416784]
[1673645254065,2.72110513,19497.0,19496.0,0.00416784]
[1673645254313,2.63454319,19497.0,19496.0,0.00416784]
[1673645254565,2.33454319,19497.0,19496.0,0.00416784]
[1673645254809,2.45954319,19497.0,19496.0,0.01016784]
[1673645255060,1.94664419,19497.0,19496.0,0.01016784]
[1673645255323,0.91234619,19497.0,19496.0,0.08021042]
[1673645255820,0.91234619,19497.0,19496.0,0.01016784]
[1673645256080,1.46963957,19497.0,19496.0,0.01016784]
[1673645256334,0.95674057,19497.0,19496.0,0.01016784]
[1673645257082,0.96524057,19497.0,19496.0,0.01016784]
[1673645257832,0.95024057,19497.0,19496.0,0.01016784]
[1673645258083,1.93164419,19497.0,19496.0,0.01016784]
[1673645258327,1.97870792,19497.0,19496.0,0.01016784]
[1673645259829,1.41874519,19497.0,19496.0,0.01016784]
[1673645260067,1.41874519,19497.0,19496.0,0.06219724]
[1673645260311,1.29500219,19497.0,19496.0,0.01016784]
[1673645260554,1.41874519,19497.0,19496.0,0.01016784]
[1673645260808,1.29500219,19497.0,19496.0,0.01016784]
[1673645261064,1.51874519,19497.0,19496.0,0.01016784]
[1673645261313,0.90584619,19497.0,19496.0,0.01016784]
[1673645261804,0.78210319,19497.0,19496.0,0.01016784]
[1673645262055,0.83914321,19497.0,19496.0,0.01016784]
[1673645262306,1.80790119,19497.0,19496.0,0.01016784]
[1673645262551,1.98334063,19497.0,19496.0,0.01016784]
[1673645263247,1.93164419,19497.0,19496.0,0.01016784]
[1673645263524,1.93164419,19497.0,19496.0,0.00797767]
[1673645263525,2.23164419,19497.0,19496.0,0.00797767]
[1673645263773,1.93164419,19497.0,19496.0,0.00797767]
[1673645264272,2.23164419,19497.0,19496.0,0.00797767]
[1673645266540,2.23164419,19497.0,19496.0,0.0057875]
[1673645267058,2.67381608,19497.0,19496.0,0.0057875]
[1673645267310,0.32511711,19495.0,19494.0,0.00416788]
[1673645267560,2.68542511,19495.0,19494.0,0.00416788]
[1673645267806,2.86144818,19495.0,19494.0,0.00416788]
[1673645268058,2.80916811,19495.0,19494.0,0.00416788]
[1673645268324,1.88642611,19495.0,19494.0,0.00416788]
[1673645268565,1.96790061,19495.0,19494.0,0.00416788]
[1673645268848,1.79868311,19495.0,19494.0,0.00416788]
[1673645269098,1.92242611,19495.0,19494.0,0.00416788]
[1673645269348,2.31832442,19495.0,19494.0,0.00416788]
[1673645269587,2.33382611,19495.0,19494.0,0.00416788]
[1673645269830,2.46782611,19495.0,19494.0,0.00416788]
[1673645270089,1.97664584,19495.0,19494.0,0.00416788]
[1673645270588,0.70032184,19495.0,19494.0,0.11395788]
[1673645270837,0.71057884,19495.0,19494.0,0.00416788]
[1673645271339,0.81957884,19495.0,19494.0,0.00416788]
[1673645271580,0.57657884,19495.0,19494.0,0.00416788]
[1673645272080,1.09803084,19495.0,19494.0,0.00416788]
[1673645272340,0.58507884,19495.0,19494.0,0.00416788]
[1673645272586,0.52035911,19495.0,19494.0,0.75303817]
[1673645272832,0.52035911,19495.0,19494.0,0.68615973]
[1673645273576,0.52035911,19495.0,19494.0,0.00416788]
[1673645274084,1.26111605,19495.0,19494.0,0.00416788]
[1673645274353,1.31066572,19495.0,19494.0,0.00416788]
[1673645274856,1.56955411,19495.0,19494.0,0.00416788]
[1673645275354,1.56055411,19495.0,19494.0,0.00416788]
[1673645275599,0.1,19494.0,19493.0,0.00210164]
[1673645275871,1.17688854,19494.0,19493.0,0.00210164]
[1673645276132,1.258199,19494.0,19493.0,0.00210164]
[1673645276388,2.14415975,19494.0,19493.0,0.00210164]
[1673645276639,1.93385481,19494.0,19493.0,0.00210164]
[1673645276917,1.558199,19494.0,19493.0,0.00210164]
[1673645277156,1.35243845,19494.0,19493.0,0.00210164]
[1673645277405,1.31643845,19494.0,19493.0,0.00210164]
[1673645278150,1.30832203,19494.0,19493.0,0.00210164]
[1673645278420,1.258199,19494.0,19493.0,0.00210164]
[1673645278668,1.394199,19494.0,19491.0,0.00440711]
[1673645278910,0.4085,19493.0,19491.0,0.00440711]
[1673645279154,1.149803,19492.0,19491.0,0.00440711]
[1673645279400,1.158303,19492.0,19491.0,0.00440711]
[1673645279905,1.74156101,19492.0,19491.0,0.00440711]
[1673645280148,1.558303,19492.0,19491.0,0.00440711]
[1673645280669,1.594303,19492.0,19491.0,0.00440711]
[1673645281176,1.741103,19492.0,19491.0,0.00440711]
[1673645281431,1.705103,19492.0,19491.0,0.00440711]
[1673645281677,1.814103,19492.0,19491.0,0.00385211]
[1673645281936,2.04049897,19492.0,19491.0,0.00385211]
[1673645282182,2.18779897,19492.0,19491.0,2.11e-06]
[1673645282430,2.32379897,19492.0,19491.0,2.11e-06]
[1673645282676,3.25353167,19492.0,19490.0,1.526e-05]
[1673645282918,6e-05,19490.0,19488.0,0.00500605]
[1673645283207,2.469779,19489.0,19488.0,0.00500605]
[1673645283449,0.1,19488.0,19487.0,0.00500605]
[1673645283694,0.1,19487.0,19484.0,0.00016225]
[1673645283952,0.86028064,19486.0,19484.0,0.00016225]
[1673645284203,2.06783764,19485.0,19484.0,0.00016225]
[1673645284456,0.75737,19484.0,19482.0,0.005299]
[1673645284703,1.8178367,19483.0,19482.0,9.9e-05]
[1673645284982,0.1,19482.0,19481.0,9.6e-07]
[1673645285247,0.1,19482.0,19480.0,0.00483535]
[1673645285248,2.33873164,19482.0,19480.0,0.00483535]
[1673645285501,1.79298064,19481.0,19477.0,0.00566372]
[1673645285803,0.1466,19478.0,19477.0,0.00566372]
[1673645286019,2.066407,19478.0,19477.0,0.00566372]
[1673645286267,2.19015,19478.0,19477.0,0.00566372]
[1673645286545,2.4215307,19478.0,19477.0,0.00566372]
[1673645287026,1.72675633,19478.0,19477.0,0.00566372]
[1673645287519,1.548697,19478.0,19477.0,0.00547372]
[1673645287769,2.18274494,19478.0,19477.0,0.00347372]
[1673645288009,2.33571449,19478.0,19477.0,0.00347372]
[1673645288749,2.20071449,19478.0,19477.0,0.00347372]
[1673645288995,2.33671449,19478.0,19477.0,0.00347372]
[1673645289254,2.72694719,19478.0,19477.0,0.00347372]
[1673645289500,0.6395,19477.0,19472.0,0.00558673]
[1673645289744,3.18888264,19476.0,19472.0,0.00558673]
[1673645289992,0.86028064,19475.0,19472.0,0.00558673]
[1673645290240,3.24879564,19474.0,19472.0,0.00558673]
[1673645290488,0.1468,19473.0,19472.0,0.00558673]
[1673645290755,1.5648067,19473.0,19472.0,0.00558673]
[1673645290993,0.1,19472.0,19470.0,0.00585364]
[1673645291242,1.766962,19471.0,19470.0,0.00585364]
[1673645291493,2.190705,19471.0,19470.0,0.00585364]
[1673645291755,2.329605,19471.0,19470.0,0.00585364]
[1673645292257,1.664495,19471.0,19470.0,0.00585364]
[1673645292504,1.840752,19471.0,19470.0,0.00585364]
[1673645292741,2.099495,19471.0,19470.0,0.00585364]
[1673645292978,1.675752,19471.0,19470.0,0.11564364]
[1673645293231,0.135,19471.0,19470.0,0.677136]
[1673645293715,0.135,19471.0,19470.0,0.00585364]
[1673645293964,0.69570682,19471.0,19470.0,0.00585364]
[1673645294209,0.68444982,19471.0,19470.0,0.00585364]
[1673645294450,0.69844982,19471.0,19470.0,0.01917381]
[1673645294706,0.513584,19471.0,19470.0,0.59812093]
[1673645294971,0.513584,19472.0,19470.0,0.59812093]
[1673645295239,0.513584,19472.0,19470.0,0.59312093]
[1673645295489,0.007,19471.0,19470.0,0.07325169]
[1673645295729,0.0002,19473.0,19470.0,0.98594864]
[1673645295974,0.015,19471.0,19470.0,0.66186364]
[1673645296223,0.015,19471.0,19470.0,1.72407784]
[1673645296483,0.015,19471.0,19470.0,1.199135]
[1673645296731,0.015,19471.0,19470.0,1.051735]
[1673645296979,0.015,19471.0,19470.0,0.918535]
[1673645297238,0.513561,19472.0,19470.0,0.58145]
[1673645297482,0.013,19471.0,19470.0,0.59445]
[1673645297736,0.513504,19475.0,19470.0,0.0608846]
[1673645297992,0.014,19471.0,19470.0,0.67406364]
[1673645298232,0.014,19471.0,19470.0,0.82146364]
[1673645298478,0.014,19471.0,19470.0,1.65915864]
[1673645298727,0.0002,19475.0,19471.0,0.1]
[1673645298971,0.0002,19475.0,19474.0,0.1474]
[1673645299214,0.0002,19475.0,19474.0,0.324011]
[1673645299452,0.0002,19475.0,19474.0,0.95239778]
[1673645299693,0.0002,19475.0,19474.0,0.87364425]
[1673645299942,0.10812,19475.0,19471.0,0.2474]
[1673645300181,0.21030494,19474.0,19473.0,0.55219194]
[1673645300423,0.0085,19474.0,19473.0,0.55219194]
[1673645301213,1.04851,19474.0,19473.0,0.56178102]
[1673645301450,1.03551,19474.0,19473.0,0.53578102]
[1673645301729,1.04951,19474.0,19473.0,0.56078102]
[1673645302008,1.03551,19474.0,19470.0,0.52531657]
[1673645302245,0.21880494,19473.0,19470.0,0.00085364]
[1673645302498,0.513557,19472.0,19470.0,0.57196857]
[1673645303189,0.513557,19472.0,19470.0,0.48483061]
[1673645303459,0.014,19473.0,19471.0,1.10323836]
[1673645303706,0.014,19473.0,19472.0,0.350789]
[1673645303951,0.15474271,19475.0,19472.0,0.350789]
[1673645304208,0.12700369,19474.0,19473.0,0.324049]
[1673645304444,0.52987515,19476.0,19471.0,0.59779174]
[1673645304692,0.52987515,19476.0,19469.0,0.00585962]
[1673645304693,0.23171,19473.0,19469.0,0.00585962]
[1673645304938,0.84760594,19472.0,19470.0,0.52501243]
[1673645305199,0.73236294,19472.0,19470.0,0.52501243]
[1673645305443,0.522058,19472.0,19470.0,0.52501243]
[1673645306205,0.73236294,19472.0,19471.0,0.024]
[1673645306448,0.73236294,19472.0,19469.0,0.00585962]
[1673645306449,0.1,19471.0,19469.0,0.00585962]
[1673645306691,0.1,19471.0,19470.0,0.026]
[1673645306956,1.135668,19471.0,19470.0,0.026]
[1673645307199,1.559411,19471.0,19470.0,0.026]
[1673645307450,1.7195089,19471.0,19469.0,0.00585962]
[1673645307695,0.22621,19470.0,19469.0,0.03185962]
[1673645307942,0.863563,19470.0,19469.0,0.00585962]
[1673645308187,0.963563,19470.0,19469.0,0.00585962]
[1673645308435,1.60949375,19470.0,19469.0,0.00131847]
[1673645309170,1.49970375,19470.0,19469.0,0.00131847]
[1673645309408,1.38896075,19470.0,19469.0,0.00131847]
[1673645309648,1.51270375,19470.0,19469.0,0.00131847]
[1673645309891,1.39596075,19470.0,19469.0,0.02531847]
[1673645310136,1.51970375,19470.0,19469.0,0.02531847]
[1673645310395,1.60071177,19470.0,19469.0,0.02531847]
[1673645310640,0.04249183,19468.0,19467.0,0.00585962]
[1673645310880,1.92602877,19468.0,19467.0,0.00585962]
[1673645311444,2.01572383,19468.0,19467.0,0.00585962]
[1673645311681,2.27866231,19468.0,19467.0,0.00585962]
[1673645311943,2.29266231,19468.0,19467.0,0.00985962]
[1673645312669,2.27866231,19468.0,19467.0,0.00585962]
[1673645312940,2.40166231,19468.0,19467.0,0.00685962]
[1673645313177,2.27866231,19468.0,19467.0,0.00585962]
[1673645313410,2.41366231,19468.0,19467.0,0.00585962]
[1673645313686,0.1,19467.0,19466.0,0.00036718]
[1673645313929,1.83314423,19467.0,19466.0,0.00036718]
[1673645314175,1.95688723,19467.0,19466.0,0.00036718]
[1673645314659,2.10428723,19467.0,19466.0,0.00036718]
[1673645315206,2.10428723,19467.0,19466.0,7.18e-06]
[1673645315453,0.21869233,19465.0,19464.0,0.00606437]
[1673645315694,2.21581833,19465.0,19464.0,0.00606437]
[1673645315951,2.33956133,19465.0,19464.0,0.00606437]
[1673645316197,2.86579403,19465.0,19464.0,0.00606437]
[1673645316444,3.51789403,19465.0,19464.0,0.00606437]
[1673645316709,3.51789403,19465.0,19461.0,0.00901592]
[1673645316710,0.6395,19464.0,19463.0,5.92e-06]
[1673645316950,2.5017707,19464.0,19463.0,5.92e-06]
[1673645317194,2.67779377,19464.0,19463.0,5.92e-06]
[1673645317443,2.13829377,19464.0,19463.0,5.92e-06]
[1673645317930,2.27329377,19464.0,19463.0,5.92e-06]
[1673645318174,3.32389201,19464.0,19463.0,5.92e-06]
[1673645318669,3.47554066,19464.0,19463.0,5.92e-06]
[1673645319139,4.1270456,19464.0,19461.0,1.184e-05]
[1673645319383,0.1,19461.0,19460.0,0.00922501]
[1673645319631,3.56367264,19461.0,19460.0,0.00922501]
[1673645319921,3.85852799,19461.0,19460.0,0.00922501]
[1673645320188,1.773787,19461.0,19460.0,0.00922501]
[1673645320413,1.765287,19461.0,19460.0,0.00922501]
[1673645320653,2.0778217,19461.0,19460.0,0.00922501]
[1673645320915,2.4680544,19461.0,19460.0,0.00922501]
[1673645321178,3.90983462,19461.0,19460.0,2.501e-05]
[1673645321415,0.1,19460.0,19452.0,0.65359324]
[1673645321648,1.541811,19458.0,19452.0,0.65359324]
[1673645321890,0.44254794,19457.0,19452.0,0.65359324]
[1673645322127,0.44254794,19457.0,19450.0,0.5576]
[1673645322128,0.001637,19452.0,19450.0,0.5576]
[1673645322393,0.21030494,19451.0,19450.0,0.6576]
[1673645322654,0.001637,19452.0,19450.0,0.424085]
[1673645322908,0.001637,19452.0,19451.0,0.1463225]
[1673645323163,0.741973,19456.0,19451.0,0.103914]
[1673645323164,0.513993,19456.0,19451.0,0.103914]
[1673645323412,0.15671186,19455.0,19451.0,0.74577477]
[1673645323660,0.15671186,19455.0,19452.0,0.42405]
[1673645323906,0.15138272,19456.0,19453.0,0.103898]
[1673645324150,0.66886888,19458.0,19452.0,0.1]
[1673645324403,0.1,19460.0,19454.0,0.1474]
[1673645324645,0.013,19455.0,19454.0,1.028048]
[1673645324895,0.013,19455.0,19454.0,1.6547437]
[1673645325137,0.11403845,19458.0,19454.0,1.64602147]
[1673645325395,0.013,19456.0,19455.0,0.203814]
[1673645325649,0.11403845,19458.0,19455.0,0.203814]
[1673645325898,0.72441594,19458.0,19456.0,0.324047]
[1673645326187,0.72441594,19458.0,19454.0,0.71445509]
[1673645326188,0.12342076,19457.0,19454.0,0.71445509]
[1673645326440,0.51398,19456.0,19454.0,0.71445509]
[1673645326683,0.51398,19456.0,19454.0,0.70045509]
[1673645327171,1.02796,19456.0,19451.0,0.554]
[1673645327407,0.21880494,19455.0,19453.0,0.66306701]
[1673645327671,0.43651494,19455.0,19454.0,0.014]
[1673645327909,1.677965,19455.0,19454.0,0.014]
[1673645328161,1.8860411,19455.0,19454.0,0.014]
[1673645328409,1.88445122,19455.0,19454.0,0.014]
[1673645328666,2.34455824,19455.0,19451.0,0.6033415]
[1673645328896,2.43112018,19455.0,19451.0,0.6033415]
[1673645329139,2.28556878,19455.0,19451.0,0.6033415]
[1673645329398,0.3,19454.0,19450.0,0.62813578]
[1673645329639,2.17063294,19455.0,19454.0,0.012]
[1673645329640,0.006,19455.0,19454.0,0.012]
[1673645329905,0.00026,19457.0,19454.0,0.947901]
[1673645330153,0.00026,19457.0,19455.0,0.103814]
[1673645330400,6e-05,19457.0,19456.0,0.424048]
[1673645330644,6e-05,19457.0,19456.0,0.9804328]
[1673645330880,6e-05,19457.0,19456.0,1.4944128]
[1673645331150,6e-05,19457.0,19456.0,1.56792041]
[1673645331395,0.01406,19457.0,19456.0,0.938028]
[1673645331867,0.02706,19457.0,19456.0,0.952028]
[1673645332124,0.02706,19457.0,19456.0,1.0986309]
[1673645332654,6e-05,19457.0,19456.0,0.938028]
[1673645332885,0.01306,19457.0,19456.0,1.491008]
[1673645333861,6e-05,19457.0,19456.0,3.43695971]
[1673645334123,0.0002,19459.0,19457.0,0.1]
[1673645334371,6e-05,19462.0,19458.0,2.78180871]
[1673645334647,6e-05,19462.0,19459.0,0.323992]
[1673645334895,0.21036494,19462.0,19460.0,0.617654]
[1673645335143,6e-05,19462.0,19461.0,0.323957]
[1673645335383,6e-05,19462.0,19461.0,0.3663527]
[1673645335873,6e-05,19462.0,19461.0,0.4663527]
[1673645336640,6e-05,19462.0,19461.0,1.11125606]
[1673645336926,6e-05,19462.0,19461.0,0.9802007]
[1673645337171,6e-05,19462.0,19461.0,2.1532007]
[1673645337923,6e-05,19462.0,19461.0,2.75319971]
[1673645338164,6e-05,19462.0,19461.0,3.05319971]
[1673645338406,0.22931,19471.0,19461.0,3.44043241]
[1673645338654,0.21030494,19469.0,19467.0,0.1461]
[1673645338895,0.155283,19470.0,19468.0,0.86217129]
[1673645339137,0.155283,19470.0,19468.0,0.53834429]
[1673645339645,0.001,19469.0,19468.0,0.53834429]
[1673645339899,0.155283,19470.0,19468.0,0.53834429]
[1673645339900,0.155283,19470.0,19468.0,0.60115787]
[1673645340145,0.008,19470.0,19469.0,0.1]
[1673645340390,0.12766814,19472.0,19469.0,0.424272]
[1673645340638,0.12766814,19472.0,19470.0,0.098223]
[1673645340884,0.12766814,19472.0,19469.0,0.1]
[1673645341133,0.12766814,19472.0,19469.0,0.1523957]
[1673645341408,0.14361683,19471.0,19469.0,0.1523957]
[1673645341653,0.0002,19472.0,19469.0,0.0523957]
[1673645341908,0.12258759,19472.0,19470.0,0.5691906]
[1673645342158,0.12158759,19472.0,19470.0,0.5691906]
[1673645342408,0.12158759,19472.0,19470.0,0.63042144]
[1673645342910,1.027065,19473.0,19470.0,0.77142144]
[1673645343157,1.1817015,19473.0,19470.0,0.7101906]
[1673645343654,0.1209052,19472.0,19470.0,0.5691906]
[1673645344156,0.2209052,19472.0,19470.0,0.01662297]
[1673645344661,0.43121014,19472.0,19470.0,0.012]
[1673645344930,0.43121014,19472.0,19468.0,0.6499837]
[1673645344931,0.3,19471.0,19468.0,0.6499837]
[1673645345184,0.61361,19470.0,19468.0,0.6499837]
[1673645345701,1.239942,19470.0,19465.0,0.67471445]
[1673645345951,0.63901894,19469.0,19465.0,0.67471445]
[1673645346198,1.127336,19468.0,19465.0,0.67471445]
[1673645346452,1.127336,19468.0,19464.0,0.00019]
[1673645346453,0.33901894,19467.0,19464.0,0.00019]
[1673645346697,1.88866694,19466.0,19465.0,0.139]
[1673645346943,2.18866694,19466.0,19465.0,0.139]
[1673645347199,0.27781,19464.0,19460.0,3.2280301]
[1673645347447,1.24640494,19463.0,19460.0,3.2280301]
[1673645347705,0.78681894,19462.0,19460.0,3.2280301]
[1673645347947,1.550044,19461.0,19460.0,3.2280301]
[1673645348203,1.778758,19461.0,19460.0,3.2280301]
[1673645348447,1.25641,19461.0,19460.0,3.2280301]
[1673645348697,1.127696,19461.0,19459.0,0.55711065]
[1673645348950,0.128714,19460.0,19459.0,0.55711065]
[1673645349201,0.128714,19460.0,19456.0,0.23037]
[1673645349453,0.21030494,19459.0,19455.0,0.1]
[1673645349694,0.21030494,19458.0,19456.0,0.50227887]
[1673645350193,1.136848,19461.0,19457.0,0.49831767]
[1673645350437,1.136848,19461.0,19458.0,0.324272]
[1673645350438,0.013,19459.0,19458.0,0.324272]
[1673645350681,1.67714295,19461.0,19457.0,0.49831767]
[1673645351411,1.16329495,19461.0,19458.0,0.1]
[1673645351683,1.16329495,19461.0,19457.0,0.49831767]
[1673645351684,0.013,19458.0,19457.0,0.49831767]
[1673645351931,0.75079989,19461.0,19457.0,0.49831767]
[1673645352174,0.27650494,19461.0,19457.0,0.50431767]
[1673645352427,0.0002,19461.0,19458.0,0.324272]
[1673645352676,0.1332,19461.0,19459.0,0.612395]
[1673645352922,0.1332,19461.0,19460.0,0.3854765]
[1673645352923,0.0002,19461.0,19460.0,0.3854765]
[1673645353191,0.07,19461.0,19460.0,0.9993505]
[1673645353456,0.27781,19464.0,19460.0,1.8069245]
[1673645353704,0.27781,19464.0,19463.0,0.1464]
[1673645353951,0.27781,19464.0,19463.0,1.598171]
[1673645354697,0.27781,19464.0,19463.0,1.498171]
[1673645354950,0.27781,19464.0,19463.0,0.470581]
[1673645355191,0.28981,19464.0,19463.0,0.380181]
[1673645356456,1.61805251,19464.0,19463.0,0.056]
[1673645356706,1.40774757,19464.0,19463.0,0.056]